{"text_format":"3","workbook":"xlsx","n_sheets":2,"sheets":["Start","Service Invoice"],"not_rendered":{"images":2,"defined_names":1},"read":"whole","date_system":"1900"}

{"sheet":"Start","index":0,"n_rows":8,"n_cols":2,"rows_kept":8}
[null,"ABOUT THIS TEMPLATE"]
[null,"Use this template to create a Service Invoice."]
[null,"Fill in Invoice number, Date, Company Name, Address, Slogan, and note To details."]
[null,"Enter information in tables."]
[null,"Total is auto calculated for you."]
[null,"Note: "]
[null,"Additional instructions have been provided in column A in SERVICE INVOICE worksheet. This text has been intentionally hidden. To remove text, select column A, then select DELETE. To unhide text, select column A, then change font colour."]
[null,"To learn more about tables, press SHIFT and then F10 within a table, select the TABLE option, and then select ALTERNATIVE TEXT."]

{"sheet":"Service Invoice","index":1,"n_rows":44,"n_cols":5,"rows_kept":44,"merged":[[0,1,0,2],[0,3,0,4],[2,1,2,3],[3,1,3,3],[4,1,4,2],[5,1,5,2],[6,1,6,2],[7,1,7,2],[41,1,41,2],[41,3,41,4],[43,1,43,4]]}
[null,"Logo placeholder is in this cell.",null,"INVOICE"]
[]
[null,"Your Company Name"]
[null,"Your Company Slogan"]
[null,"Street Address",null,"INVOICE NO.","No."]
[null,"Town/City, Postcode",null,"DATE ",{"$f":"TODAY()","v":"2022-05-09"}]
[null,"Phone Fax",null,"CUSTOMER ID ","ID"]
[null,"Email"]
[null,"TO","Name"]
[null,null,"Company Name"]
[null,null,"Street Address"]
[null,null,"City, postcode"]
[null,null,"Phone"]
[null,"SALESPERSON","JOB","PAYMENT TERMS","DUE DATE"]
[{"$nulls":3},"Due upon receipt"]
[]
[null,"QUANTITY","DESCRIPTION","UNIT PRICE","LINE TOTAL"]
[{"$nulls":4},{"$f":"IF(SUM(B18)>0,SUM(B18*'Service Invoice'!$D18),\"\")","v":""}]
[{"$nulls":4},{"$f":"IF(SUM(B19)>0,SUM(B19*'Service Invoice'!$D19),\"\")","v":""}]
[{"$nulls":4},{"$f":"IF(SUM(B20)>0,SUM(B20*'Service Invoice'!$D20),\"\")","v":""}]
[{"$nulls":4},{"$f":"IF(SUM(B21)>0,SUM(B21*'Service Invoice'!$D21),\"\")","v":""}]
[{"$nulls":4},{"$f":"IF(SUM(B22)>0,SUM(B22*'Service Invoice'!$D22),\"\")","v":""}]
[{"$nulls":4},{"$f":"IF(SUM(B23)>0,SUM(B23*'Service Invoice'!$D23),\"\")","v":""}]
[{"$nulls":4},{"$f":"IF(SUM(B24)>0,SUM(B24*'Service Invoice'!$D24),\"\")","v":""}]
[{"$nulls":4},{"$f":"IF(SUM(B25)>0,SUM(B25*'Service Invoice'!$D25),\"\")","v":""}]
[{"$nulls":4},{"$f":"IF(SUM(B26)>0,SUM(B26*'Service Invoice'!$D26),\"\")","v":""}]
[{"$nulls":4},{"$f":"IF(SUM(B27)>0,SUM(B27*'Service Invoice'!$D27),\"\")","v":""}]
[{"$nulls":4},{"$f":"IF(SUM(B28)>0,SUM(B28*'Service Invoice'!$D28),\"\")","v":""}]
[{"$nulls":4},{"$f":"IF(SUM(B29)>0,SUM(B29*'Service Invoice'!$D29),\"\")","v":""}]
[{"$nulls":4},{"$f":"IF(SUM(B30)>0,SUM(B30*'Service Invoice'!$D30),\"\")","v":""}]
[{"$nulls":4},{"$f":"IF(SUM(B31)>0,SUM(B31*'Service Invoice'!$D31),\"\")","v":""}]
[{"$nulls":4},{"$f":"IF(SUM(B32)>0,SUM(B32*'Service Invoice'!$D32),\"\")","v":""}]
[{"$nulls":4},{"$f":"IF(SUM(B33)>0,SUM(B33*'Service Invoice'!$D33),\"\")","v":""}]
[{"$nulls":4},{"$f":"IF(SUM(B34)>0,SUM(B34*'Service Invoice'!$D34),\"\")","v":""}]
[{"$nulls":4},{"$f":"IF(SUM(B35)>0,SUM(B35*'Service Invoice'!$D35),\"\")","v":""}]
[{"$nulls":4},{"$f":"IF(SUM(B36)>0,SUM(B36*'Service Invoice'!$D36),\"\")","v":""}]
[{"$nulls":4},{"$f":"IF(SUM(B37)>0,SUM(B37*'Service Invoice'!$D37),\"\")","v":""}]
[{"$nulls":3},"SUBTOTAL",{"$f":"IF(SUM(E18:E37)>0,SUM(E18:E37),\"\")","v":""}]
[{"$nulls":3},"SALES TAX"]
[{"$nulls":3},"TOTAL",{"$f":"IF(SUM(E38)>0,SUM((E38*E39)+E38),\"\")","v":""}]
[]
[null,"Make all checks payable to",null,{"$f":"B3","v":"Your Company Name"}]
[]
[null,"THANK YOU FOR YOUR BUSINESS!"]